{"text_format":"1","workbook":"xlsx","n_sheets":2,"sheets":["Qwixx","Eredményeim"],"not_rendered":{"charts":0,"images":0,"macros":1,"external_links":0,"defined_names":0,"comments":1,"pivot_tables":0},"unopened":[],"bounds":{"document_bytes":16777216,"sheet_cells":100000,"rows_first":2000,"rows_last":500,"rows_between":2000,"halvings":0,"cell_chars":16384,"cell_head_chars":4096},"cells_cut":0,"cells_raw":0,"read":"whole","date_system":"1900"}

{"sheet":"Qwixx","index":0,"n_rows":25,"n_cols":15,"rows_kept":25,"cut":false,"hidden":false,"merged":[[24,12,24,13],[0,1,0,4],[4,3,5,4],[2,7,2,15],[1,7,1,15],[0,7,0,15],[5,7,5,16],[6,7,6,16],[7,7,7,16],[4,7,4,16],[3,7,3,16]]}
[null,"Q W I X X     S O L O",null,null,null,null,"Szabályok:","Balról jobbra töltsd fel mind a négy színsort. Minél több számot jelölsz be, annál több pontot fogsz kapni."]
[null,null,null,null,null,null,null,"Ha kihagysz számot, később már nem jelölheted meg!"]
[null,null,null,null,null,null,null,"A bejelöléshez írj bármit (pl. X-et) a színsávba! "]
[null,null,null,null,"by Csibu",null,"Játékmenet:","1. Dobj (nyomd meg a Kokckadobás gombot)! "]
[null,null,1,{"$f":"SUM(C5:C6)","v":4},null,null,null,"2. Döntsd el, hogy jelölsz-e be bármilyen színt a két fehér dobás összegével egyezően! Max. 1 számot jelölhetsz be így!"]
[null,null,3,null,null,null,null,"3. Az egyik fehér értéket add össze az egyik színes értékkel és az összeget jelöld meg az adott színsávon, ha teheted és akarod."]
[null,null,4,{"$f":"SUM(C7,C5)","v":5},{"$f":"SUM(C7,C$6)","v":7},null,null,"4. Ha semmit nem jelöltél be eddig az utolsó kockadobásod óta, jelöld be a szürke sáv egyik mezőjét (ez -5 pont)!"]
[null,null,3,{"$f":"SUM(C8,C5)","v":4},{"$f":"SUM(C8,C$6)","v":6},null,null,"5. Ha a szürke sáv minden mezőjét belölted, vagy 2 lock mezőt is bejelöltél, a játék véget ér!"]
[null,null,3,{"$f":"SUM(C9,C5)","v":4},6,null,null,"6. Vezesd át pontszámod az Eredményeim munkalapra!"]
[null,null,4,{"$f":"SUM(C10,C5)","v":5},7,null,null,null,null,null,null,null,null,"Darab:","Pontérték:"]
[]
[null,null,null,null,null,null,null,null,"Hibák:",null,null,null,null,{"$f":"COUNTA(J12:M12)","v":0},{"$f":"N12*-5","v":0}]
[]
[null,null,null,null,null,null,null,null,null,null,null,null,null,{"$f":"COUNTA(B14:M14)","v":0},{"$f":"HLOOKUP(N14,B22:N23,2,FALSE)","v":0}]
[null,2,3,4,5,6,7,8,9,10,11,12,"LOCK"]
[null,null,null,null,null,null,null,null,null,null,null,null,null,{"$f":"COUNTA(B16:M16)","v":0},{"$f":"HLOOKUP(N16,B22:N23,2,FALSE)","v":0}]
[]
[null,null,null,null,null,null,null,null,null,null,null,null,null,{"$f":"COUNTA(B18:M18)","v":0},{"$f":"HLOOKUP(N18,B22:N23,2,FALSE)","v":0}]
[null,12,11,10,9,8,7,6,5,4,3,2,"LOCK"]
[null,null,null,null,null,null,null,null,null,null,null,null,null,{"$f":"COUNTA(B20:M20)","v":0},{"$f":"HLOOKUP(N20,B22:N23,2,FALSE)","v":0}]
[]
[null,0,1,2,3,4,5,6,7,8,9,10,11,12,"db"]
[null,0,1,3,6,10,15,21,28,36,45,55,66,78,"pont"]
[]
[null,null,null,null,null,null,null,null,null,null,null,null,"Végeredmény:",null,{"$f":"SUM(O12,O14,O16,O18,O20)","v":0}]

{"sheet":"Eredményeim","index":1,"n_rows":2,"n_cols":4,"rows_kept":2,"cut":false,"hidden":false,"merged":[]}
[]
[null,"Név:","Dátum:","Pontszám:"]